[Event "GER-ch Youth-U12 2024"]
[Site "Willingen"]
[Date "2024.05.22"]
[Round "5"]
[White "Hagn, Tobias"]
[Black "Hepp, Daniel"]
[Result "1-0"]
[ECO "C01"]
[WhiteElo "1631"]
[BlackElo "1721"]
[Annotator "NA RC"]
[PlyCount "186"]
[EventDate "2022.06.05"]
[EventType "swiss"]
[EventRounds "9"]
[EventCountry "GER"]
[SourceTitle "playchess.com"]
[Source "ChessBase"]
[SourceQuality "1"]
[TimeControl "40/4500+30:900+30"]

1. e4 {[%emt 0:00:00]} e6 {[%emt 0:00:00]} 2. d4 {[%emt 0:00:00]} d5 {[%emt 0:00:00]} 3. exd5 {[%emt 0:00:00]} exd5 {[%emt 0:00:00]} 4. Bd3 {[%emt 0:00:00]} Bd6 {[%emt 0:00:00]} 5. h3 {[%emt 0:00:00]} Nc6 {[%emt 0:00:00]} 6. c3 {[%emt 0:00:00]} Nge7 {[%emt 0:00:00]} 7. Nf3 {[%emt 0:00:00]} Bf5 {[%emt 0:00:00]} 8. Be3 {[%emt 0:00:00]} Qd7 {[%emt 0:00:00]} 9. Be2 {[%emt 0:00:00]} h6 {[%emt 0:00:00]} 10. Nbd2 {[%emt 0:00:00]} Ng6 {[%emt 0:00:00]} 11. Nb3 {[%emt 0:03:57]} b6 {[%emt 0:06:27]} 12. Qd2 {[%emt 0:07:17]} O-O {[%emt 0:04:22]} 13. Nh2 {[%emt 0:09:57]} Nh4 {[%emt 0:07:26]} 14. O-O-O {[%emt 0:14:07]} Na5 {[%emt 0:06:18]} 15. g3 {[%emt 0:09:04]} Ng6 {[%emt 0:29:13]} 16. Na1 {[%emt 0:11:32]} Qa4 {[%emt 0:05:20]} 17. a3 {[%emt 0:09:51]} Qb3 {[%emt 0:06:47]} 18. Bd3 {[%emt 0:05:21]} Bxd3 {[%emt 0:01:25]} 19. Qxd3 {[%emt 0:00:17]} Qa2 {[%emt 0:00:50]} 20. Qb1 {[%emt 0:00:32]} Qxb1+ {[%emt 0:01:25]} 21. Kxb1 {[%emt 0:00:11]} Nc4 {[%emt 0:00:34]} 22. Nc2 {[%emt 0:00:26]} Rfe8 {[%emt 0:00:36]} 23. Nf3 {[%emt 0:04:27]} Bxg3 {[%emt 0:01:42]} 24. Bxh6 {[%emt 0:05:16]} Bxf2 {[%emt 0:01:19]} 25. Bc1 {[%emt 0:00:44]} Nd6 {[%emt 0:06:40]} 26. Nb4 {[%emt 0:00:50]} Ne7 {[%emt 0:00:58]} 27. Rh2 {[%emt 0:01:16]} Ne4 {[%emt 0:01:14]} 28. Bf4 {[%emt 0:01:21]} a5 {[%emt 0:00:40]} 29. Nd3 {[%emt 0:00:39]} Bg3 {[%emt 0:00:14]} 30. Bxg3 {[%emt 0:00:52]} Nxg3 {[%emt 0:00:09]} 31. Rg2 {[%emt 0:00:22]} Nef5 {[%emt 0:00:42]} 32. Nfe5 {[%emt 0:00:33]} f6 {[%emt 0:00:50]} 33. Ng4 {[%emt 0:00:18]} Kf7 {[%emt 0:01:30]} 34. Rdg1 {[%emt 0:00:52]} Ne4 {[%emt 0:02:17]} 35. Rf1 {[%emt 0:01:22]} g6 {[%emt 0:00:53]} 36. Rh2 {[%emt 0:00:46]} c6 {[%emt 0:00:46]} 37. h4 {[%emt 0:00:14]} Nfd6 {[%emt 0:01:45]} 38. h5 {[%emt 0:00:41]} Rh8 {[%emt 0:00:52]} 39. Nge5+ {[%emt 0:00:25]} Kg7 {[%emt 0:00:25]} 40. Nxg6 {[%emt 0:00:14]} Rxh5 {[%emt 0:00:34]} 41. Rxh5 {[%emt 0:00:00]} Nd2+ {[%emt 0:00:00]} 42. Kc1 {[%emt 0:00:00]} Nxf1 {[%emt 0:00:00]} 43. Ne7 {[%emt 0:00:00]} Re8 {[%emt 0:00:00]} 44. Nxc6 {[%emt 0:00:00]} Re3 {[%emt 0:06:31]} 45. Rxd5 {[%emt 0:00:00]} Rxd3 {[%emt 0:05:12]} 46. Rxd6 {[%emt 0:00:00]} Ne3 {[%emt 0:00:39]} 47. Kb1 {[%emt 0:00:00]} Nc4 {[%emt 0:01:44]} 48. Rd7+ {[%emt 0:00:00]} Kg6 {[%emt 0:01:06]} 49. Ne7+ {[%emt 0:03:48]} Kg5 {[%emt 0:01:47]} 50. Rc7 {[%emt 0:00:36]} Ne3 {[%emt 0:00:41]} 51. Rc6 {[%emt 0:02:36]} a4 {[%emt 0:00:46]} 52. Rxb6 {[%emt 0:07:17]} Rd1+ {[%emt 0:00:56]} 53. Ka2 {[%emt 0:00:06]} Nc2 {[%emt 0:01:03]} 54. b3 {[%emt 0:00:07]} Rd2 {[%emt 0:01:53]} 55. bxa4 {[%emt 0:00:16]} Nxd4+ {[%emt 0:00:32]} 56. Kb1 {[%emt 0:00:17]} Ne2 {[%emt 0:00:16]} 57. Rc6 {[%emt 0:01:02]} f5 {[%emt 0:00:48]} 58. Rc5 {[%emt 0:00:29]} Kf6 {[%emt 0:00:15]} 59. Nxf5 {[%emt 0:00:33]} Nxc3+ {[%emt 0:00:17]} 60. Rxc3 {[%emt 0:00:17]} Kxf5 {[%emt 0:00:04]} 61. a5 {[%emt 0:00:29]} Rd6 {[%emt 0:00:12]} 62. Kb2 {[%emt 0:00:50]} Ra6 {[%emt 0:01:21]} 63. Rc5+ {[%emt 0:00:19]} Ke6 {[%emt 0:00:23]} 64. Kb3 {[%emt 0:00:16]} Kd6 {[%emt 0:00:18]} 65. Kb4 {[%emt 0:00:25]} Ra7 {[%emt 0:01:13]} 66. Rb5 {[%emt 0:00:21]} Kc6 {[%emt 0:00:39]} 67. Rb6+ {[%emt 0:00:19]} Kc7 {[%emt 0:00:15]} 68. Kb5 {[%emt 0:00:12]} Rb7 {[%emt 0:00:28]} 69. Ka6 {[%emt 0:01:33]} Rb8 {[%emt 0:00:43]} 70. Ka7 {[%emt 0:00:24]} Rc8 {[%emt 0:00:30]} 71. Rb7+ {[%emt 0:01:03]} Kc6 {[%emt 0:00:13]} 72. a6 {[%emt 0:00:35]} Rd8 {[%emt 0:00:58]} 73. a4 {[%emt 0:01:47]} Rc8 {[%emt 0:00:31]} 74. a5 {[%emt 0:00:33]} Rd8 {[%emt 0:00:02]} 75. Rb8 {[%emt 0:00:37]} Rd5 {[%emt 0:00:51]} 76. Rc8+ {[%emt 0:00:54]} Kd7 {[%emt 0:00:12]} 77. Rc4 {[%emt 0:00:48]} Rxa5 {[%emt 0:00:19]} 78. Kb6 {[%emt 0:00:34]} Ra1 {[%emt 0:00:43]} 79. Rc7+ {[%emt 0:00:12]} Kd8 {[%emt 0:00:36]} 80. Rb7 {[%emt 0:00:41]} Kc8 {[%emt 0:00:32]} 81. Rc7+ {[%emt 0:00:41]} Kd8 {[%emt 0:00:33]} 82. a7 {[%emt 0:00:32]} Rb1+ {[%emt 0:00:25]} 83. Kc6 {[%emt 0:00:07]} Rc1+ {[%emt 0:00:19]} 84. Kd6 {[%emt 0:00:12]} Rd1+ {[%emt 0:00:12]} 85. Ke5 {[%emt 0:00:06]} Ra1 {[%emt 0:01:00]} 86. Rb7 {[%emt 0:00:11]} Re1+ {[%emt 0:00:40]} 87. Kf4 {[%emt 0:00:07]} Rf1+ {[%emt 0:00:15]} 88. Kg3 {[%emt 0:00:08]} Rg1+ {[%emt 0:00:35]} 89. Kf2 {[%emt 0:00:06]} Ra1 {[%emt 0:00:12]} 90. Rb8+ {[%emt 0:00:10]} Kc7 {[%emt 0:00:05]} 91. a8=Q {[%emt 0:00:09]} Rxa8 {[%emt 0:00:36]} 92. Rxa8 {[%emt 0:00:09]} Kb7 {[%emt 0:00:08]} 93. Ra5 {[%emt 0:00:09]} Kb6 {[%emt 0:00:04]} 1-0

[Event "GER-ch Youth-U12 2024"]
[Site "Willingen"]
[Date "2024.05.22"]
[Round "5"]
[White "Franke, Moritz"]
[Black "Sasikumar Anitha, Sarvesh"]
[Result "0-1"]
[ECO "A17"]
[WhiteElo "1597"]
[BlackElo "1703"]
[Annotator "NA RC"]
[PlyCount "86"]
[EventDate "2022.06.05"]
[EventType "swiss"]
[EventRounds "9"]
[EventCountry "GER"]
[SourceTitle "playchess.com"]
[Source "ChessBase"]
[SourceQuality "1"]
[TimeControl "40/4500+30:900+30"]

1. c4 {[%emt 0:00:00]} e6 {[%emt 0:00:00]} 2. Nc3 {[%emt 0:00:00]} d5 {[%emt 0:00:00]} 3. e3 {[%emt 0:00:00]} Nf6 {[%emt 0:00:00]} 4. Nf3 {[%emt 0:00:00]} Be7 {[%emt 0:00:00]} 5. g3 {[%emt 0:00:00]} O-O {[%emt 0:00:00]} 6. d4 {[%emt 0:00:00]} dxc4 {[%emt 0:00:00]} 7. Bxc4 {[%emt 0:00:00]} b6 {[%emt 0:00:00]} 8. b3 {[%emt 0:00:26]} Bb7 {[%emt 0:00:00]} 9. Bf1 {[%emt 0:01:59]} c5 {[%emt 0:05:17]} 10. Bg2 {[%emt 0:01:51]} Nc6 {[%emt 0:03:59]} 11. dxc5 {[%emt 0:02:40]} Qxd1+ {[%emt 0:01:13]} 12. Nxd1 {[%emt 0:04:11]} Bxc5 {[%emt 0:03:34]} 13. O-O {[%emt 0:01:53]} Ba6 {[%emt 0:06:48]} 14. Re1 {[%emt 0:00:27]} Nb4 {[%emt 0:05:15]} 15. Nd4 {[%emt 0:03:25]} Bxd4 {[%emt 0:02:10]} 16. exd4 {[%emt 0:01:08]} Nc2 {[%emt 0:00:13]} 17. Bxa8 {[%emt 0:00:22]} Rxa8 {[%emt 0:00:08]} 18. Bd2 {[%emt 0:04:32]} Nxa1 {[%emt 0:02:00]} 19. Ne3 {[%emt 0:00:32]} Nxb3 {[%emt 0:00:33]} 20. axb3 {[%emt 0:00:07]} Kf8 {[%emt 0:05:53]} 21. Bb4+ {[%emt 0:01:21]} Ke8 {[%emt 0:00:30]} 22. Ra1 {[%emt 0:00:36]} Bb7 {[%emt 0:00:31]} 23. Nc4 {[%emt 0:00:10]} Bd5 {[%emt 0:01:39]} 24. Nd6+ {[%emt 0:01:50]} Kd7 {[%emt 0:00:28]} 25. Nxf7 {[%emt 0:00:13]} Bxb3 {[%emt 0:00:58]} 26. Ne5+ {[%emt 0:00:07]} Kc7 {[%emt 0:00:33]} 27. Rc1+ {[%emt 0:00:14]} Kb7 {[%emt 0:00:55]} 28. Nf7 {[%emt 0:00:14]} a5 {[%emt 0:04:26]} 29. Nd6+ {[%emt 0:03:13]} Ka6 {[%emt 0:00:50]} 30. f4 {[%emt 0:04:22]} Nd5 {[%emt 0:05:29]} 31. Ba3 {[%emt 0:04:11]} Ba4 {[%emt 0:02:55]} 32. Ne4 {[%emt 0:01:35]} Ka7 {[%emt 0:01:58]} 33. Ng5 {[%emt 0:00:20]} Bd7 {[%emt 0:01:05]} 34. Nxh7 {[%emt 0:00:42]} b5 {[%emt 0:00:18]} 35. Ng5 {[%emt 0:00:16]} b4 {[%emt 0:00:37]} 36. Bb2 {[%emt 0:00:45]} a4 {[%emt 0:02:05]} 37. Ra1 {[%emt 0:01:00]} Kb6 {[%emt 0:01:10]} 38. Ne4 {[%emt 0:00:29]} Ne3 {[%emt 0:02:45]} 39. Nc5 {[%emt 0:00:28]} Bb5 {[%emt 0:01:01]} 40. Ne4 {[%emt 0:07:05]} Nc4 {[%emt 0:00:52]} 41. Bc1 {[%emt 0:15:31]} b3 {[%emt 0:00:57]} 42. Rb1 {[%emt 0:01:41]} a3 {[%emt 0:16:13]} 43. Nd2 {[%emt 0:00:56]} Nxd2 {[%emt 0:00:18]} 0-1

[Event "GER-ch Youth-U12 2024"]
[Site "Willingen"]
[Date "2024.05.22"]
[Round "5"]
[White "Gao, Chenzhuo"]
[Black "Wagener, Nicolas"]
[Result "0-1"]
[ECO "A47"]
[WhiteElo "1580"]
[BlackElo "1713"]
[Annotator "NA RC"]
[PlyCount "66"]
[EventDate "2022.06.05"]
[EventType "swiss"]
[EventRounds "9"]
[EventCountry "GER"]
[SourceTitle "playchess.com"]
[Source "ChessBase"]
[SourceQuality "1"]
[TimeControl "40/4500+30:900+30"]

1. Nf3 {[%emt 0:00:00]} Nf6 {[%emt 0:00:00]} 2. b3 {[%emt 0:00:00]} b6 {[%emt 0:00:00]} 3. Bb2 {[%emt 0:00:00]} Bb7 {[%emt 0:00:00]} 4. e3 {[%emt 0:00:00]} d5 {[%emt 0:00:00]} 5. d4 {[%emt 0:00:00]} e6 {[%emt 0:00:00]} 6. Nbd2 {[%emt 0:00:00]} Bd6 {[%emt 0:00:00]} 7. Bd3 {[%emt 0:00:00]} Ne4 {[%emt 0:00:00]} 8. O-O {[%emt 0:00:00]} O-O {[%emt 0:00:00]} 9. Qe2 {[%emt 0:00:00]} Nd7 {[%emt 0:00:00]} 10. Rfd1 {[%emt 0:00:00]} f5 {[%emt 0:00:00]} 11. Ne5 {[%emt 0:09:31]} Rf6 {[%emt 0:00:00]} 12. f4 {[%emt 0:05:48]} Rh6 {[%emt 0:00:42]} 13. Ndf3 {[%emt 0:00:38]} Ndf6 {[%emt 0:00:25]} 14. Ng5 {[%emt 0:06:54]} Bxe5 {[%emt 0:04:46]} 15. dxe5 {[%emt 0:01:22]} Ng4 {[%emt 0:00:46]} 16. Bxe4 {[%emt 0:00:30]} Rxh2 {[%emt 0:06:50]} 17. Bf3 {[%emt 0:02:01]} Rh4 {[%emt 0:01:28]} 18. Nxe6 {[%emt 0:02:12]} Qe8 {[%emt 0:01:27]} 19. Ng5 {[%emt 0:12:34]} Qh5 {[%emt 0:01:24]} 20. Nh3 {[%emt 0:00:44]} Rxh3 {[%emt 0:01:51]} 21. gxh3 {[%emt 0:00:50]} Qxh3 {[%emt 0:00:07]} 22. Bxg4 {[%emt 0:01:15]} fxg4 {[%emt 0:00:07]} 23. Re1 {[%emt 0:02:29]} d4 {[%emt 0:01:38]} 24. e4 {[%emt 0:00:52]} g3 {[%emt 0:00:38]} 25. Qg2 {[%emt 0:01:07]} Qh4 {[%emt 0:00:22]} 26. f5 {[%emt 0:02:48]} Rf8 {[%emt 0:00:13]} 27. Rad1 {[%emt 0:01:21]} Rxf5 {[%emt 0:01:03]} 28. Rd3 {[%emt 0:00:44]} Rxe5 {[%emt 0:05:21]} 29. Qxg3 {[%emt 0:00:40]} Rg5 {[%emt 0:00:07]} 30. Qxg5 {[%emt 0:03:44]} Qxg5+ {[%emt 0:00:09]} 31. Kf2 {[%emt 0:00:09]} Qf4+ {[%emt 0:00:23]} 32. Rf3 {[%emt 0:00:32]} Qh2+ {[%emt 0:00:21]} 33. Kf1 {[%emt 0:00:10]} Ba6+ {[%emt 0:00:11]} 0-1

[Event "GER-ch Youth-U12 2024"]
[Site "Willingen"]
[Date "2024.05.22"]
[Round "5"]
[White "Kaza, Charith"]
[Black "Draude, Theo"]
[Result "0-1"]
[ECO "B90"]
[WhiteElo "1503"]
[BlackElo "1731"]
[Annotator "NA RC"]
[PlyCount "126"]
[EventDate "2022.06.05"]
[EventType "swiss"]
[EventRounds "9"]
[EventCountry "GER"]
[SourceTitle "playchess.com"]
[Source "ChessBase"]
[SourceQuality "1"]
[TimeControl "40/4500+30:900+30"]

1. e4 {[%emt 0:00:00]} c5 {[%emt 0:00:00]} 2. Nf3 {[%emt 0:00:00]} d6 {[%emt 0:00:00]} 3. d4 {[%emt 0:00:00]} cxd4 {[%emt 0:00:00]} 4. Nxd4 {[%emt 0:00:00]} Nf6 {[%emt 0:00:00]} 5. Nc3 {[%emt 0:00:00]} a6 {[%emt 0:00:00]} 6. h3 {[%emt 0:00:00]} e5 {[%emt 0:00:00]} 7. Nb3 {[%emt 0:00:00]} Be6 {[%emt 0:00:00]} 8. Be3 {[%emt 0:00:00]} Be7 {[%emt 0:00:00]} 9. f4 {[%emt 0:00:00]} exf4 {[%emt 0:00:00]} 10. Bxf4 {[%emt 0:00:00]} O-O {[%emt 0:00:00]} 11. Qf3 {[%emt 0:00:00]} Nbd7 {[%emt 0:00:00]} 12. O-O-O {[%emt 0:00:00]} Qc7 {[%emt 0:11:33]} 13. Bd3 {[%emt 0:00:00]} Ne5 {[%emt 0:09:33]} 14. Bxe5 {[%emt 0:00:00]} dxe5 {[%emt 0:00:09]} 15. Nd5 {[%emt 0:00:00]} Bxd5 {[%emt 0:04:46]} 16. exd5 {[%emt 0:00:00]} Rfd8 {[%emt 0:00:22]} 17. h4 {[%emt 0:04:25]} Qd7 {[%emt 0:10:43]} 18. Kb1 {[%emt 0:00:42]} a5 {[%emt 0:01:54]} 19. Rh3 {[%emt 0:11:23]} a4 {[%emt 0:04:13]} 20. Nc1 {[%emt 0:00:10]} a3 {[%emt 0:04:57]} 21. b3 {[%emt 0:06:34]} Qc7 {[%emt 0:07:02]} 22. c4 {[%emt 0:05:00]} e4 {[%emt 0:02:02]} 23. Bxe4 {[%emt 0:06:37]} Qe5 {[%emt 0:00:20]} 24. Bxh7+ {[%emt 0:01:23]} Nxh7 {[%emt 0:01:09]} 25. Nd3 {[%emt 0:00:28]} Qd4 {[%emt 0:02:32]} 26. Qe3 {[%emt 0:01:53]} Bf6 {[%emt 0:03:07]} 27. Kc2 {[%emt 0:01:14]} Qc3+ {[%emt 0:00:22]} 28. Kb1 {[%emt 0:00:27]} Qa1+ {[%emt 0:00:11]} 29. Kc2 {[%emt 0:00:04]} Qxa2+ {[%emt 0:00:06]} 30. Kc1 {[%emt 0:00:10]} Qa1+ {[%emt 0:01:01]} 31. Kd2 {[%emt 0:00:27]} Qc3+ {[%emt 0:00:10]} 32. Ke2 {[%emt 0:00:19]} Re8 {[%emt 0:00:15]} 33. Nf4 {[%emt 0:01:26]} Rxe3+ {[%emt 0:00:29]} 34. Rxe3 {[%emt 0:00:10]} Qxe3+ {[%emt 0:01:10]} 35. Kxe3 {[%emt 0:00:14]} a2 {[%emt 0:00:08]} 36. d6 {[%emt 0:00:13]} a1=Q {[%emt 0:00:17]} 37. Rxa1 {[%emt 0:00:02]} Rxa1 {[%emt 0:00:47]} 38. d7 {[%emt 0:00:04]} Rd1 {[%emt 0:00:06]} 39. Nd5 {[%emt 0:00:06]} Bd8 {[%emt 0:00:37]} 40. Ke2 {[%emt 0:00:27]} Rxd5 {[%emt 0:00:12]} 41. cxd5 {[%emt 0:15:14]} Nf6 {[%emt 0:15:09]} 42. d6 {[%emt 0:00:12]} Nxd7 {[%emt 0:00:07]} 43. h5 {[%emt 0:00:19]} Kh7 {[%emt 0:00:11]} 44. Kf3 {[%emt 0:00:10]} Kh6 {[%emt 0:00:12]} 45. g4 {[%emt 0:00:33]} f6 {[%emt 0:00:23]} 46. Kf4 {[%emt 0:00:33]} Nc5 {[%emt 0:00:18]} 47. b4 {[%emt 0:00:13]} Nd3+ {[%emt 0:00:12]} 48. Kf5 {[%emt 0:00:09]} Nxb4 {[%emt 0:00:17]} 49. Kf4 {[%emt 0:00:22]} Nc6 {[%emt 0:00:16]} 50. Kf5 {[%emt 0:00:06]} b5 {[%emt 0:00:08]} 51. d7 {[%emt 0:00:18]} b4 {[%emt 0:00:17]} 52. Ke4 {[%emt 0:00:07]} Kg5 {[%emt 0:00:21]} 53. Kd5 {[%emt 0:00:12]} b3 {[%emt 0:00:20]} 54. Kxc6 {[%emt 0:00:06]} b2 {[%emt 0:00:10]} 55. h6 {[%emt 0:00:05]} gxh6 {[%emt 0:00:19]} 56. Kb7 {[%emt 0:00:16]} b1=Q+ {[%emt 0:00:08]} 57. Kc8 {[%emt 0:00:07]} Ba5 {[%emt 0:00:18]} 58. d8=Q {[%emt 0:00:06]} Bxd8 {[%emt 0:00:04]} 59. Kxd8 {[%emt 0:00:07]} Qb7 {[%emt 0:00:11]} 60. Ke8 {[%emt 0:00:06]} Qc7 {[%emt 0:00:27]} 61. Kf8 {[%emt 0:01:23]} Qd7 {[%emt 0:00:07]} 62. Kg8 {[%emt 0:00:05]} Kg6 {[%emt 0:00:10]} 63. g5 {[%emt 0:00:03]} Qg7# {[%emt 0:00:08]} 0-1

[Event "GER-ch Youth-U12 2024"]
[Site "Willingen"]
[Date "2024.05.22"]
[Round "5"]
[White "Levytskyi, Oleksandr"]
[Black "Andersen, Jonathan"]
[Result "1-0"]
[ECO "C90"]
[WhiteElo "1467"]
[BlackElo "1693"]
[Annotator "NA RC"]
[PlyCount "119"]
[EventDate "2022.06.05"]
[EventType "swiss"]
[EventRounds "9"]
[EventCountry "GER"]
[SourceTitle "playchess.com"]
[Source "ChessBase"]
[SourceQuality "1"]
[TimeControl "40/4500+30:900+30"]

1. e4 {[%emt 0:00:10]} e5 {[%emt 0:00:00]} 2. Nf3 {[%emt 0:00:00]} Nc6 {[%emt 0:00:00]} 3. Bb5 {[%emt 0:00:00]} a6 {[%emt 0:00:00]} 4. Ba4 {[%emt 0:00:00]} Nf6 {[%emt 0:00:00]} 5. d3 {[%emt 0:00:00]} b5 {[%emt 0:00:00]} 6. Bb3 {[%emt 0:00:00]} Be7 {[%emt 0:00:00]} 7. O-O {[%emt 0:00:00]} O-O {[%emt 0:00:00]} 8. c3 {[%emt 0:00:00]} d6 {[%emt 0:00:00]} 9. Re1 {[%emt 0:00:00]} Na5 {[%emt 0:00:00]} 10. Bc2 {[%emt 0:00:00]} c5 {[%emt 0:00:00]} 11. Nbd2 {[%emt 0:00:00]} Bb7 {[%emt 0:00:00]} 12. Nf1 {[%emt 0:00:00]} Rc8 {[%emt 0:00:00]} 13. Ng3 {[%emt 0:00:00]} g6 {[%emt 0:00:00]} 14. h3 {[%emt 0:00:00]} b4 {[%emt 0:00:00]} 15. Nh2 {[%emt 0:00:00]} Qd7 {[%emt 0:00:00]} 16. f4 {[%emt 0:02:38]} Ne8 {[%emt 0:00:52]} 17. f5 {[%emt 0:08:21]} Bh4 {[%emt 0:00:31]} 18. Qg4 {[%emt 0:01:23]} Bxg3 {[%emt 0:08:34]} 19. Qxg3 {[%emt 0:00:08]} Kh8 {[%emt 0:04:26]} 20. Rf1 {[%emt 0:19:31]} gxf5 {[%emt 0:07:42]} 21. Rxf5 {[%emt 0:01:40]} Rg8 {[%emt 0:01:39]} 22. Qf3 {[%emt 0:04:04]} Rc7 {[%emt 0:02:07]} 23. Bh6 {[%emt 0:03:32]} Qe6 {[%emt 0:00:54]} 24. Be3 {[%emt 0:04:46]} bxc3 {[%emt 0:00:23]} 25. bxc3 {[%emt 0:00:19]} Bc8 {[%emt 0:02:44]} 26. Ba4 {[%emt 0:10:51]} Qe7 {[%emt 0:18:32]} 27. Rh5 {[%emt 0:02:09]} Qf6 {[%emt 0:00:33]} 28. Qe2 {[%emt 0:10:22]} Ng7 {[%emt 0:12:35]} 29. Rh6 {[%emt 0:01:10]} Qe7 {[%emt 0:00:15]} 30. Ng4 {[%emt 0:00:29]} Bxg4 {[%emt 0:00:35]} 31. Qxg4 {[%emt 0:00:11]} f6 {[%emt 0:10:58]} 32. Qh4 {[%emt 0:00:12]} Ne6 {[%emt 0:00:09]} 33. Qxf6+ {[%emt 0:00:23]} Qxf6 {[%emt 0:00:10]} 34. Rxf6 {[%emt 0:00:06]} Re7 {[%emt 0:00:53]} 35. Bd1 {[%emt 0:01:35]} Kg7 {[%emt 0:00:46]} 36. Rf2 {[%emt 0:01:20]} Rb8 {[%emt 0:01:24]} 37. Bg4 {[%emt 0:00:16]} Nf8 {[%emt 0:04:37]} 38. Raf1 {[%emt 0:01:03]} Ng6 {[%emt 0:00:27]} 39. Rf6 {[%emt 0:00:53]} Rd8 {[%emt 0:02:47]} 40. Bg5 {[%emt 0:00:21]} Nf4 {[%emt 0:03:39]} 41. R6xf4 {[%emt 0:15:11]} exf4 {[%emt 0:15:10]} 42. Bxe7 {[%emt 0:00:04]} Re8 {[%emt 0:00:07]} 43. Bxd6 {[%emt 0:00:11]} c4 {[%emt 0:00:05]} 44. Bb4 {[%emt 0:01:33]} Nc6 {[%emt 0:00:15]} 45. Bd7 {[%emt 0:00:07]} Nxb4 {[%emt 0:00:03]} 46. Bxe8 {[%emt 0:00:10]} Nxd3 {[%emt 0:00:05]} 47. Rd1 {[%emt 0:00:45]} Kf6 {[%emt 0:00:08]} 48. Rxd3 {[%emt 0:00:39]} cxd3 {[%emt 0:00:05]} 49. Kf2 {[%emt 0:00:08]} Ke5 {[%emt 0:00:07]} 50. Bc6 {[%emt 0:00:22]} a5 {[%emt 0:00:13]} 51. Ke1 {[%emt 0:00:07]} Kd6 {[%emt 0:00:08]} 52. Bd5 {[%emt 0:00:06]} h5 {[%emt 0:00:13]} 53. Kd2 {[%emt 0:00:05]} Ke5 {[%emt 0:00:07]} 54. Kxd3 {[%emt 0:00:10]} a4 {[%emt 0:00:03]} 55. h4 {[%emt 0:00:25]} a3 {[%emt 0:00:05]} 56. Bf7 {[%emt 0:00:05]} Kd6 {[%emt 0:00:06]} 57. Bxh5 {[%emt 0:00:05]} Ke5 {[%emt 0:00:03]} 58. Bf3 {[%emt 0:00:11]} Kf6 {[%emt 0:00:06]} 59. Kd4 {[%emt 0:00:10]} Ke6 {[%emt 0:00:05]} 60. e5 {[%emt 0:00:07]} 1-0

[Event "GER-ch Youth-U12 2024"]
[Site "Willingen"]
[Date "2024.05.22"]
[Round "5"]
[White "König, Lian"]
[Black "Fass, Ben"]
[Result "1-0"]
[ECO "C54"]
[WhiteElo "1180"]
[BlackElo "1027"]
[Annotator "NA"]
[PlyCount "119"]
[EventDate "2022.06.05"]
[EventType "swiss"]
[EventRounds "9"]
[EventCountry "GER"]
[SourceTitle "playchess.com"]
[Source "ChessBase"]
[SourceQuality "1"]
[TimeControl "40/4500+30:900+30"]

1. e4 {[%emt 0:00:00]} e5 {[%emt 0:00:00]} 2. Nf3 {[%emt 0:00:00]} Nc6 {[%emt 0:00:00]} 3. Bc4 {[%emt 0:00:00]} Bc5 {[%emt 0:00:00]} 4. c3 {[%emt 0:00:00]} Nf6 {[%emt 0:00:00]} 5. d3 {[%emt 0:00:00]} d6 {[%emt 0:00:00]} 6. a4 {[%emt 0:00:00]} a6 {[%emt 0:00:00]} 7. b4 {[%emt 0:00:00]} Ba7 {[%emt 0:00:00]} 8. O-O {[%emt 0:00:00]} Qe7 {[%emt 0:00:00]} 9. h3 {[%emt 0:00:00]} Be6 {[%emt 0:00:00]} 10. Bb3 {[%emt 0:00:00]} O-O {[%emt 0:00:00]} 11. Nbd2 {[%emt 0:01:13]} Rfd8 {[%emt 0:00:00]} 12. Re1 {[%emt 0:02:59]} Nh5 {[%emt 0:00:00]} 13. Bc2 {[%emt 0:05:04]} Qd7 {[%emt 0:00:00]} 14. Nxe5 {[%emt 0:04:46]} dxe5 {[%emt 0:01:18]} 15. Qxh5 {[%emt 0:00:27]} Qe7 {[%emt 0:01:57]} 16. Qf3 {[%emt 0:05:08]} Qg5 {[%emt 0:05:09]} 17. Nf1 {[%emt 0:00:57]} Qh4 {[%emt 0:01:50]} 18. Be3 {[%emt 0:04:09]} Bxe3 {[%emt 0:02:33]} 19. Nxe3 {[%emt 0:01:45]} Ne7 {[%emt 0:00:51]} 20. Nf5 {[%emt 0:08:14]} Bxf5 {[%emt 0:00:55]} 21. exf5 {[%emt 0:00:19]} f6 {[%emt 0:01:13]} 22. d4 {[%emt 0:01:31]} Nc6 {[%emt 0:03:09]} 23. d5 {[%emt 0:06:16]} Ne7 {[%emt 0:01:55]} 24. Bb3 {[%emt 0:00:22]} Rd6 {[%emt 0:00:45]} 25. Rad1 {[%emt 0:02:23]} Qg5 {[%emt 0:08:44]} 26. g4 {[%emt 0:05:09]} g6 {[%emt 0:00:00]} 27. fxg6 {[%emt 0:01:23]} Qxg6 {[%emt 0:00:00]} 28. c4 {[%emt 0:02:46]} Qf7 {[%emt 0:02:02]} 29. c5 {[%emt 0:00:56]} e4 {[%emt 0:09:30]} 30. Qg3 {[%emt 0:08:12]} Rxd5 {[%emt 0:01:03]} 31. Bxd5 {[%emt 0:00:55]} Nxd5 {[%emt 0:02:08]} 32. Qb3 {[%emt 0:03:01]} c6 {[%emt 0:01:19]} 33. b5 {[%emt 0:01:57]} Rd8 {[%emt 0:00:40]} 34. Rxe4 {[%emt 0:07:38]} Kg7 {[%emt 0:00:51]} 35. Rde1 {[%emt 0:02:33]} h5 {[%emt 0:02:59]} 36. gxh5 {[%emt 0:00:37]} Qxh5 {[%emt 0:02:28]} 37. Qg3+ {[%emt 0:01:43]} Kf8 {[%emt 0:01:02]} 38. Rh4 {[%emt 0:01:02]} Qg5 {[%emt 0:01:33]} 39. Qxg5 {[%emt 0:01:09]} fxg5 {[%emt 0:00:19]} 40. Rh8+ {[%emt 0:00:13]} Kg7 {[%emt 0:00:56]} 41. Rxd8 {[%emt 0:15:11]} Nc3 {[%emt 0:15:15]} 42. Re7+ {[%emt 0:00:57]} Kh6 {[%emt 0:00:14]} 43. Rg8 {[%emt 0:00:28]} axb5 {[%emt 0:00:34]} 44. Reg7 {[%emt 0:01:40]} bxa4 {[%emt 0:00:19]} 45. Rxg5 {[%emt 0:00:13]} a3 {[%emt 0:00:09]} 46. Rg4 {[%emt 0:00:11]} Kh7 {[%emt 0:00:23]} 47. Ra8 {[%emt 0:00:53]} a2 {[%emt 0:00:15]} 48. Rg3 {[%emt 0:00:43]} Ne2+ {[%emt 0:00:26]} 49. Kf1 {[%emt 0:00:09]} Nxg3+ {[%emt 0:00:02]} 50. fxg3 {[%emt 0:00:12]} b5 {[%emt 0:00:26]} 51. cxb6 {[%emt 0:00:11]} c5 {[%emt 0:00:27]} 52. Rxa2 {[%emt 0:00:31]} c4 {[%emt 0:01:33]} 53. Rc2 {[%emt 0:00:10]} Kg6 {[%emt 0:00:06]} 54. Rxc4 {[%emt 0:00:16]} Kf5 {[%emt 0:00:11]} 55. b7 {[%emt 0:00:21]} Ke6 {[%emt 0:00:07]} 56. b8=Q {[%emt 0:00:09]} Kd5 {[%emt 0:00:10]} 57. Qb5+ {[%emt 0:00:16]} Kd6 {[%emt 0:00:15]} 58. Rc6+ {[%emt 0:00:27]} Kd7 {[%emt 0:00:07]} 59. Qb7+ {[%emt 0:00:10]} Kd8 {[%emt 0:00:06]} 60. Rc8# {[%emt 0:00:10]} 1-0